Workbook

Sheet Sheet1
A1: 福泉市2019年统一面向社会公开招聘 事业单位工作人员5月19日分类考试笔试成绩
A2: 序号 | B2: 准考证号 | C2: 姓名 | D2: 职业能力倾向测验成绩 | E2: 综合应用能力成绩 | F2: 笔试成绩 | G2: 加分 | H2: 笔试环节成绩 | I2: 备注
A3: 1 | B3: 5152270403821 | C3: 陈泽迈 | D3: 68.00 | E3: 37.00 | F3: 105.00 | H3: =F3+G3 -> 105.00
A4: 2 | B4: 5152270403929 | C4: 古飘 | D4: 86.50 | E4: 75.50 | F4: 162.00 | H4: =F4+G4 -> 162.00
A5: 3 | B5: 5152270403809 | C5: 韩进松 | D5: 0.00 | E5: 0.00 | F5: 0.00 | H5: -- | I5: 缺考
A6: 4 | B6: 5152270404119 | C6: 李金 | D6: 69.50 | E6: 49.10 | F6: 118.60 | H6: 118.60
A7: 5 | B7: 5152270409109 | C7: 李明丹 | D7: 67.00 | E7: 46.50 | F7: 113.50 | H7: 113.50
A8: 6 | B8: 5152270409106 | C8: 罗林林 | D8: 75.50 | E8: 73.00 | F8: 148.50 | H8: 148.50
A9: 7 | B9: 5152270404010 | C9: 罗实 | D9: 73.00 | E9: 47.00 | F9: 120.00 | H9: 120.00
A10: 8 | B10: 5152270404012 | C10: 王超 | D10: 75.00 | E10: 54.90 | F10: 129.90 | H10: 129.90
A11: 9 | B11: 5152270403902 | C11: 张平 | D11: 64.00 | E11: 70.00 | F11: 134.00 | H11: 134.00
A12: 10 | B12: 5152270403924 | C12: 张雪 | D12: 70.50 | E12: 51.40 | F12: 121.90 | H12: 121.90
A13: 11 | B13: 5152270403815 | C13: 赵伽焜 | D13: 67.50 | E13: 72.80 | F13: 140.30 | H13: 140.30
A14: 12 | B14: 5152270403827 | C14: 朱银 | D14: 0.00 | E14: 0.00 | F14: 0.00 | H14: -- | I14: 缺考
A15: 13 | B15: 5152270404014 | C15: 姜莎莎 | D15: 73.50 | E15: 53.90 | F15: 127.40 | G15: 2 | H15: 129.40
A16: 14 | B16: 5152270403811 | C16: 龙苏立 | D16: 70.50 | E16: 60.90 | F16: 131.40 | G16: 2 | H16: 133.40
A17: 15 | B17: 5152270403910 | C17: 王斌 | D17: 52.00 | E17: 66.70 | F17: 118.70 | G17: 2 | H17: 120.70
A18: 16 | B18: 5152270409112 | C18: 吴蝶 | D18: 39.50 | E18: 46.40 | F18: 85.90 | G18: 2 | H18: 87.90
A19: 17 | B19: 5552270404529 | C19: 裴安 | D19: 71.50 | E19: 44.20 | F19: 115.70 | H19: 115.70
A20: 18 | B20: 5552270404614 | C20: 唐陈 | D20: 78.50 | E20: 70.20 | F20: 148.70 | H20: 148.70
A21: 19 | B21: 5552270404522 | C21: 晏长凤 | D21: 70.00 | E21: 87.30 | F21: 157.30 | H21: 157.30
A22: 20 | B22: 5552270404524 | C22: 杨显柱 | D22: 85.00 | E22: 48.30 | F22: 133.30 | H22: 133.30
A23: 21 | B23: 5552270409122 | C23: 常青 | D23: 67.00 | E23: 51.90 | F23: 118.90 | H23: 118.90
A24: 22 | B24: 5552270404514 | C24: 胡显坤 | D24: 71.00 | E24: 40.50 | F24: 111.50 | H24: 111.50
A25: 23 | B25: 5552270404610 | C25: 朱志宏 | D25: 87.50 | E25: 61.60 | F25: 149.10 | H25: 149.10
A26: 24 | B26: 5252270404209 | C26: 蔡青伶 | D26: 77.00 | E26: 71.20 | F26: 148.20 | H26: 148.20
A27: 25 | B27: 5252270404218 | C27: 何丽 | D27: 72.00 | E27: 80.50 | F27: 152.50 | H27: 152.50
A28: 26 | B28: 5252270404206 | C28: 龙雪妮 | D28: 0.00 | E28: 0.00 | F28: 0.00 | H28: -- | I28: 缺考
A29: 27 | B29: 5252270404324 | C29: 罗丽琼 | D29: 62.50 | E29: 73.10 | F29: 135.60 | H29: 135.60
A30: 28 | B30: 5252270404211 | C30: 唐春维 | D30: 60.50 | E30: 80.50 | F30: 141.00 | H30: 141.00
A31: 29 | B31: 5252270404226 | C31: 唐路路 | D31: 73.00 | E31: 92.60 | F31: 165.60 | H31: 165.60
A32: 30 | B32: 5252270404222 | C32: 张爱婷 | D32: 66.50 | E32: 76.00 | F32: 142.50 | H32: 142.50
A33: 31 | B33: 5252270404328 | C33: 张青青 | D33: 68.00 | E33: 66.30 | F33: 134.30 | H33: 134.30
A34: 32 | B34: 5152270409102 | C34: 冯广英 | D34: 0.00 | E34: 0.00 | F34: 0.00 | H34: -- | I34: 缺考
A35: 33 | B35: 5152270404020 | C35: 林丽 | D35: 0.00 | E35: 0.00 | F35: 0.00 | H35: -- | I35: 缺考
A36: 34 | B36: 5152270404128 | C36: 郑国碧 | D36: 0.00 | E36: 0.00 | F36: 0.00 | H36: -- | I36: 缺考
A37: 35 | B37: 5152270403825 | C37: 周行念 | D37: 73.00 | E37: 56.40 | F37: 129.40 | H37: 129.40
A38: 36 | B38: 5352270404409 | C38: 卢洪杰 | D38: 83.00 | E38: 72.90 | F38: 155.90 | H38: 155.90
A39: 37 | B39: 5352270409116 | C39: 蒲小敏 | D39: 75.00 | E39: 56.40 | F39: 131.40 | H39: 131.40
A40: 38 | B40: 5252270404212 | C40: 陈艳 | D40: 68.00 | E40: 86.10 | F40: 154.10 | G40: 2 | H40: 156.10
A41: 39 | B41: 5352270404410 | C41: 王倩 | D41: 68.50 | E41: 71.10 | F41: 139.60 | G41: 2 | H41: 141.60
A42: 40 | B42: 5252270404208 | C42: 韦治州 | D42: 0.00 | E42: 0.00 | F42: 0.00 | G42: 2 | H42: -- | I42: 缺考
A43: 41 | B43: 5252270404320 | C43: 伍玲君 | D43: 62.00 | E43: 73.20 | F43: 135.20 | G43: 2 | H43: 137.20
A44: 42 | B44: 5252270404323 | C44: 杨华静 | D44: 76.50 | E44: 80.80 | F44: 157.30 | G44: 2 | H44: 159.30
A45: 43 | B45: 5352270404417 | C45: 杨斯琪 | D45: 68.50 | E45: 54.30 | F45: 122.80 | G45: 2 | H45: 124.80
A46: 44 | B46: 5352270404402 | C46: 郑时艳 | D46: 90.00 | E46: 87.00 | F46: 177.00 | G46: 2 | H46: 179.00
A47: 45 | B47: 5352270404403 | C47: 柏义芝 | D47: 49.50 | E47: 60.60 | F47: 110.10 | G47: 2 | H47: 112.10
A48: 46 | B48: 5152270404122 | C48: 陈蹬莲 | D48: 59.00 | E48: 51.20 | F48: 110.20 | H48: 110.20
A49: 47 | B49: 5152270403917 | C49: 李纯俊 | D49: 66.50 | E49: 44.50 | F49: 111.00 | H49: 111.00
A50: 48 | B50: 5152270403903 | C50: 李树印 | D50: 51.50 | E50: 60.50 | F50: 112.00 | H50: 112.00
A51: 49 | B51: 5152270403927 | C51: 李籽恒 | D51: 88.50 | E51: 46.70 | F51: 135.20 | H51: 135.20
A52: 50 | B52: 5152270409113 | C52: 罗洪玉 | D52: 61.00 | E52: 56.10 | F52: 117.10 | H52: 117.10
A53: 51 | B53: 5152270403818 | C53: 毛国旭 | D53: 0.00 | E53: 0.00 | F53: 0.00 | H53: -- | I53: 缺考
A54: 52 | B54: 5152270404013 | C54: 彭华梅 | D54: 78.50 | E54: 62.30 | F54: 140.80 | H54: 140.80
A55: 53 | B55: 5152270404111 | C55: 孙乾露 | D55: 58.50 | E55: 47.70 | F55: 106.20 | H55: 106.20
A56: 54 | B56: 5152270404022 | C56: 唐育章 | D56: 62.50 | E56: 53.20 | F56: 115.70 | H56: 115.70
A57: 55 | B57: 5152270404125 | C57: 王洪波 | D57: 45.00 | E57: 46.40 | F57: 91.40 | H57: 91.40
A58: 56 | B58: 5152270403923 | C58: 吴庭剑 | D58: 0.00 | E58: 0.00 | F58: 0.00 | H58: -- | I58: 缺考
A59: 57 | B59: 5152270403919 | C59: 吴选冬 | D59: 0.00 | E59: 0.00 | F59: 0.00 | H59: -- | I59: 缺考
A60: 58 | B60: 5152270404015 | C60: 陈倩 | D60: 56.50 | E60: 52.40 | F60: 108.90 | G60: 2 | H60: 110.90
A61: 59 | B61: 5152270403907 | C61: 杨义婷 | D61: 67.00 | E61: 51.10 | F61: 118.10 | H61: 118.10
A62: 60 | B62: 5152270404007 | C62: 张慧 | D62: 64.00 | E62: 33.40 | F62: 97.40 | H62: 97.40
A63: 61 | B63: 5152270404028 | C63: 张开银 | D63: 0.00 | E63: 0.00 | F63: 0.00 | H63: -- | I63: 缺考
A64: 62 | B64: 5152270403921 | C64: 赵维 | D64: 74.00 | E64: 55.70 | F64: 129.70 | H64: 129.70
A65: 63 | B65: 5352270404419 | C65: 陈青堂 | D65: 89.00 | E65: 75.90 | F65: 164.90 | H65: 164.90
A66: 64 | B66: 5352270409118 | C66: 蒋志群 | D66: 46.00 | E66: 39.70 | F66: 85.70 | H66: 85.70
A67: 65 | B67: 5352270404416 | C67: 金启军 | D67: 0.00 | E67: 0.00 | F67: 0.00 | H67: -- | I67: 缺考
A68: 66 | B68: 5352270404426 | C68: 赖代萍 | D68: 69.50 | E68: 56.80 | F68: 126.30 | H68: =F68+G68 -> 126.30
A69: 67 | B69: 5352270404421 | C69: 李承凤 | D69: 0.00 | E69: 0.00 | F69: 0.00 | H69: -- | I69: 缺考
A70: 68 | B70: 5352270404413 | C70: 李凤 | D70: 51.50 | E70: 55.80 | F70: 107.30 | H70: 107.30
A71: 69 | B71: 5352270404411 | C71: 李关伟 | D71: 72.50 | E71: 49.70 | F71: 122.20 | H71: 122.20
A72: 70 | B72: 5352270404407 | C72: 李雪 | D72: 74.00 | E72: 59.70 | F72: 133.70 | H72: 133.70
A73: 71 | B73: 5352270404404 | C73: 林祖发 | D73: 64.50 | E73: 49.70 | F73: 114.20 | H73: 114.20
A74: 72 | B74: 5352270404423 | C74: 刘胜琴 | D74: 62.50 | E74: 48.90 | F74: 111.40 | H74: 111.40
A75: 73 | B75: 5352270409120 | C75: 卢安碧 | D75: 84.50 | E75: 71.30 | F75: 155.80 | H75: 155.80
A76: 74 | B76: 5352270404427 | C76: 罗丹萍 | D76: 84.00 | E76: 70.30 | F76: 154.30 | H76: 154.30
A77: 75 | B77: 5352270404420 | C77: 罗元云 | D77: 55.00 | E77: 51.80 | F77: 106.80 | H77: 106.80
A78: 76 | B78: 5352270409117 | C78: 毛晓艳 | D78: 74.50 | E78: 49.60 | F78: 124.10 | H78: 124.10
A79: 77 | B79: 5352270404430 | C79: 田景莲 | D79: 79.50 | E79: 48.60 | F79: 128.10 | H79: 128.10
A80: 78 | B80: 5352270404414 | C80: 王永梅 | D80: 52.50 | E80: 58.40 | F80: 110.90 | H80: 110.90
A81: 79 | B81: 5352270404429 | C81: 杨娟 | D81: 61.00 | E81: 67.70 | F81: 128.70 | H81: 128.70
A82: 80 | B82: 5352270404415 | C82: 杨艳 | D82: 73.00 | E82: 49.00 | F82: 122.00 | H82: 122.00
A83: 81 | B83: 5352270409119 | C83: 犹雪 | D83: 0.00 | E83: 0.00 | F83: 0.00 | H83: -- | I83: 缺考
A84: 82 | B84: 5352270404401 | C84: 赵玥 | D84: 72.50 | E84: 70.70 | F84: 143.20 | H84: 143.20
A85: 83 | B85: 5152270403826 | C85: 顾光泽 | D85: 63.00 | E85: 45.80 | F85: 108.80 | G85: 2 | H85: 110.80
A86: 84 | B86: 5152270404005 | C86: 兰天婷 | D86: 51.00 | E86: 36.40 | F86: 87.40 | G86: 2 | H86: 89.40
A87: 85 | B87: 5352270404424 | C87: 刘跃颖 | D87: 49.00 | E87: 59.20 | F87: 108.20 | G87: 2 | H87: 110.20
A88: 86 | B88: 5152270409110 | C88: 龙登洲 | D88: 59.00 | E88: 51.30 | F88: 110.30 | G88: 2 | H88: 112.30
A89: 87 | B89: 5352270404418 | C89: 龙倩文 | D89: 0.00 | E89: 0.00 | F89: 0.00 | G89: 2 | H89: -- | I89: 缺考
A90: 88 | B90: 5152270403928 | C90: 罗竣瀚 | D90: 93.00 | E90: 55.40 | F90: 148.40 | G90: 2 | H90: 150.40
A91: 89 | B91: 5152270403909 | C91: 罗艺 | D91: 69.00 | E91: 39.40 | F91: 108.40 | G91: 2 | H91: 110.40
A92: 90 | B92: 5352270404422 | C92: 潘杭 | D92: 77.50 | E92: 61.40 | F92: 138.90 | G92: 2 | H92: 140.90
A93: 91 | B93: 5352270404406 | C93: 石秋柳 | D93: 0.00 | E93: 0.00 | F93: 0.00 | G93: 2 | H93: -- | I93: 缺考
A94: 92 | B94: 5352270404405 | C94: 宋燕红 | D94: 91.50 | E94: 56.30 | F94: 147.80 | G94: 2 | H94: 149.80
A95: 93 | B95: 5352270404412 | C95: 唐健丽 | D95: 68.50 | E95: 58.40 | F95: 126.90 | G95: 2 | H95: 128.90
A96: 94 | B96: 5152270403920 | C96: 王洪兵 | D96: 72.00 | E96: 39.60 | F96: 111.60 | G96: 2 | H96: 113.60
A97: 95 | B97: 5152270404101 | C97: 王欢欢 | D97: 75.00 | E97: 41.10 | F97: 116.10 | G97: 2 | H97: 118.10
A98: 96 | B98: 5152270403817 | C98: 王强 | D98: 63.00 | E98: 49.90 | F98: 112.90 | G98: 2 | H98: 114.90
A99: 97 | B99: 5352270404428 | C99: 吴思玮 | D99: 85.50 | E99: 51.30 | F99: 136.80 | G99: 2 | H99: 138.80
A100: 98 | B100: 5152270403806 | C100: 熊慧云 | D100: 0.00 | E100: 0.00 | F100: 0.00 | G100: 2 | H100: -- | I100: 缺考
A101: 99 | B101: 5352270404408 | C101: 鄢小童 | D101: 69.50 | E101: 48.40 | F101: 117.90 | G101: 2 | H101: 119.90
A102: 100 | B102: 5152270403914 | C102: 杨芃 | D102: 82.00 | E102: 44.80 | F102: 126.80 | G102: 2 | H102: 128.80
A103: 101 | B103: 5152270404103 | C103: 杨鹏 | D103: 58.50 | E103: 37.10 | F103: 95.60 | G103: 2 | H103: 97.60
A104: 102 | B104: 5352270404425 | C104: 余红军 | D104: 69.00 | E104: 56.90 | F104: 125.90 | G104: 2 | H104: 127.90
A105: 103 | B105: 5152270404106 | C105: 赵兴鑫 | D105: 65.50 | E105: 43.00 | F105: 108.50 | G105: 2 | H105: 110.50
A106: 104 | B106: 5152270403816 | C106: 祝华峰 | D106: 88.00 | E106: 45.70 | F106: 133.70 | G106: 2 | H106: 135.70
A107: 105 | B107: 5552270409125 | C107: 何鼎兰 | D107: 0.00 | E107: 0.00 | F107: 0.00 | H107: -- | I107: 缺考
A108: 106 | B108: 5552270404602 | C108: 罗菊 | D108: 67.00 | E108: 62.80 | F108: 129.80 | H108: 129.80
A109: 107 | B109: 5552270404621 | C109: 王欲舟 | D109: 0.00 | E109: 0.00 | F109: 0.00 | H109: -- | I109: 缺考
A110: 108 | B110: 5252270404303 | C110: 安海兵 | D110: 62.00 | E110: 39.00 | F110: 101.00 | G110: 2 | H110: 103.00
A111: 109 | B111: 5252270404316 | C111: 陈芳妍 | D111: 68.50 | E111: 76.40 | F111: 144.90 | H111: 144.90
A112: 110 | B112: 5252270404214 | C112: 程晓娇 | D112: 0.00 | E112: 0.00 | F112: 0.00 | H112: -- | I112: 缺考
A113: 111 | B113: 5252270404210 | C113: 程星溱 | D113: 44.00 | E113: 59.00 | F113: 103.00 | H113: 103.00
A114: 112 | B114: 5252270404201 | C114: 丁发祥 | D114: 57.00 | E114: 69.10 | F114: 126.10 | H114: 126.10
A115: 113 | B115: 5252270404311 | C115: 江荣容 | D115: 53.00 | E115: 76.30 | F115: 129.30 | H115: 129.30
A116: 114 | B116: 5252270404213 | C116: 李付艺 | D116: 0.00 | E116: 0.00 | F116: 0.00 | H116: -- | I116: 缺考
A117: 115 | B117: 5252270404225 | C117: 李红梅 | D117: 51.00 | E117: 66.00 | F117: 117.00 | H117: 117.00
A118: 116 | B118: 5252270404202 | C118: 李家倩 | D118: 65.00 | E118: 64.20 | F118: 129.20 | H118: 129.20
A119: 117 | B119: 5252270404312 | C119: 李绍宇 | D119: 62.00 | E119: 65.40 | F119: 127.40 | H119: 127.40
A120: 118 | B120: 5252270404220 | C120: 刘建美 | D120: 63.00 | E120: 71.70 | F120: 134.70 | H120: 134.70
A121: 119 | B121: 5252270404207 | C121: 刘胜贵 | D121: 65.50 | E121: 78.80 | F121: 144.30 | H121: 144.30
A122: 120 | B122: 5252270404325 | C122: 罗跃 | D122: 0.00 | E122: 0.00 | F122: 0.00 | H122: -- | I122: 缺考
A123: 121 | B123: 5252270404327 | C123: 彭华新 | D123: 48.50 | E123: 64.60 | F123: 113.10 | H123: 113.10
A124: 122 | B124: 5252270404221 | C124: 汪定群 | D124: 0.00 | E124: 0.00 | F124: 0.00 | H124: -- | I124: 违纪
A125: 123 | B125: 5252270404304 | C125: 王倩 | D125: 82.00 | E125: 64.00 | F125: 146.00 | H125: 146.00
A126: 124 | B126: 5252270404329 | C126: 王云玮 | D126: 55.00 | E126: 62.20 | F126: 117.20 | H126: 117.20
A127: 125 | B127: 5252270404313 | C127: 文昱景 | D127: 60.00 | E127: 60.40 | F127: 120.40 | H127: 120.40
A128: 126 | B128: 5252270404321 | C128: 谢军强 | D128: 67.50 | E128: 57.10 | F128: 124.60 | H128: 124.60
A129: 127 | B129: 5252270404314 | C129: 徐正昌 | D129: 76.50 | E129: 68.10 | F129: 144.60 | H129: 144.60
A130: 128 | B130: 5252270404224 | C130: 杨隆权 | D130: 66.00 | E130: 63.20 | F130: 129.20 | H130: 129.20
A131: 129 | B131: 5252270404305 | C131: 易力 | D131: 84.00 | E131: 66.40 | F131: 150.40 | H131: 150.40
A132: 130 | B132: 5252270404205 | C132: 张霞 | D132: 51.00 | E132: 64.90 | F132: 115.90 | H132: =F132+G132 -> 115.90
A133: 131 | B133: 5252270404315 | C133: 张小丽 | D133: 76.00 | E133: 50.60 | F133: 126.60 | H133: 126.60
A134: 132 | B134: 5252270404308 | C134: 赵飞 | D134: 55.50 | E134: 63.60 | F134: 119.10 | H134: 119.10
A135: 133 | B135: 5252270404219 | C135: 蒋文正 | D135: 0.00 | E135: 0.00 | F135: 0.00 | G135: 2 | H135: -- | I135: 缺考
A136: 134 | B136: 5252270404229 | C136: 黎子樱 | D136: 83.00 | E136: 67.60 | F136: 150.60 | G136: 2 | H136: 152.60
A137: 135 | B137: 5252270404223 | C137: 李威 | D137: 66.00 | E137: 81.10 | F137: 147.10 | G137: 2 | H137: 149.10
A138: 136 | B138: 5252270404216 | C138: 李贞芝 | D138: 0.00 | E138: 0.00 | F138: 0.00 | G138: 2 | H138: -- | I138: 缺考
A139: 137 | B139: 5252270404301 | C139: 罗守宏 | D139: 0.00 | E139: 0.00 | F139: 0.00 | G139: 2 | H139: -- | I139: 缺考
A140: 138 | B140: 5252270404302 | C140: 罗兴面 | D140: 0.00 | E140: 0.00 | F140: 0.00 | G140: 2 | H140: -- | I140: 缺考
A141: 139 | B141: 5252270404317 | C141: 罗秀霞 | D141: 71.50 | E141: 74.00 | F141: 145.50 | G141: 2 | H141: 147.50
A142: 140 | B142: 5252270404228 | C142: 潘玉票 | D142: 70.50 | E142: 89.00 | F142: 159.50 | G142: 2 | H142: 161.50
A143: 141 | B143: 5252270404230 | C143: 苏婷婷 | D143: 54.50 | E143: 62.50 | F143: 117.00 | G143: 2 | H143: 119.00
A144: 142 | B144: 5252270404307 | C144: 陶桃 | D144: 66.50 | E144: 59.10 | F144: 125.60 | G144: 2 | H144: 127.60
A145: 143 | B145: 5252270404204 | C145: 王堋 | D145: 70.00 | E145: 77.90 | F145: 147.90 | G145: 2 | H145: 149.90
A146: 144 | B146: 5252270404227 | C146: 王萍 | D146: 0.00 | E146: 0.00 | F146: 0.00 | G146: 2 | H146: -- | I146: 缺考
A147: 145 | B147: 5252270404217 | C147: 韦黎倩 | D147: 57.00 | E147: 45.90 | F147: 102.90 | G147: 2 | H147: 104.90
A148: 146 | B148: 5252270404318 | C148: 韦亮辉 | D148: 58.00 | E148: 69.10 | F148: 127.10 | G148: 2 | H148: 129.10
A149: 147 | B149: 5252270404310 | C149: 韦明稳 | D149: 74.50 | E149: 58.20 | F149: 132.70 | G149: 2 | H149: 134.70
A150: 148 | B150: 5252270404309 | C150: 吴胜忠 | D150: 44.00 | E150: 58.80 | F150: 102.80 | G150: 2 | H150: 104.80
A151: 149 | B151: 5252270404203 | C151: 杨彪 | D151: 58.00 | E151: 58.90 | F151: 116.90 | G151: 2 | H151: 118.90
A152: 150 | B152: 5252270404306 | C152: 杨英 | D152: 71.50 | E152: 61.20 | F152: 132.70 | G152: 2 | H152: 134.70
A153: 151 | B153: 5252270404322 | C153: 张廷来 | D153: 50.50 | E153: 42.80 | F153: 93.30 | G153: 2 | H153: 95.30
A154: 152 | B154: 5252270404326 | C154: 张泽萍 | D154: 50.00 | E154: 59.70 | F154: 109.70 | G154: 2 | H154: 111.70
A155: 153 | B155: 5252270404215 | C155: 张忠黎 | D155: 38.00 | E155: 55.90 | F155: 93.90 | G155: 2 | H155: 95.90
A156: 154 | B156: 5152270403830 | C156: 范方珍 | D156: 55.50 | E156: 47.40 | F156: 102.90 | G156: 2 | H156: 104.90
A157: 155 | B157: 5152270404126 | C157: 陈莎 | D157: 51.50 | E157: 53.70 | F157: 105.20 | H157: 105.20
A158: 156 | B158: 5152270403808 | C158: 史倨 | D158: 71.00 | E158: 48.00 | F158: 119.00 | H158: 119.00
A159: 157 | B159: 5152270403911 | C159: 杨慧 | D159: 70.00 | E159: 43.00 | F159: 113.00 | H159: 113.00
A160: 158 | B160: 5152270404115 | C160: 姬魁俊 | D160: 0.00 | E160: 0.00 | F160: 0.00 | H160: -- | I160: 缺考
A161: 159 | B161: 5152270404009 | C161: 石昌武 | D161: 0.00 | E161: 0.00 | F161: 0.00 | H161: -- | I161: 缺考
A162: 160 | B162: 5152270404030 | C162: 宋赣浈 | D162: 77.00 | E162: 45.30 | F162: 122.30 | H162: 122.30
A163: 161 | B163: 5152270404117 | C163: 王为胜 | D163: 62.00 | E163: 43.40 | F163: 105.40 | H163: 105.40
A164: 162 | B164: 5152270403915 | C164: 王影基 | D164: 53.50 | E164: 39.60 | F164: 93.10 | H164: 93.10
A165: 163 | B165: 5152270403807 | C165: 潘瑞 | D165: 64.00 | E165: 41.90 | F165: 105.90 | G165: 2 | H165: 107.90
A166: 164 | B166: 5152270403819 | C166: 袁萍 | D166: 0.00 | E166: 0.00 | F166: 0.00 | G166: 2 | H166: -- | I166: 缺考
A167: 165 | B167: 5252270404319 | C167: 杨建华 | D167: 43.00 | E167: 58.20 | F167: 101.20 | G167: 2 | H167: 103.20
A168: 166 | B168: 5152270404025 | C168: 岑忠林 | D168: 56.50 | E168: 51.90 | F168: 108.40 | G168: 2 | H168: 110.40
A169: 167 | B169: 5552270404626 | C169: 陈锦谕 | D169: 72.50 | E169: 46.30 | F169: 118.80 | G169: 2 | H169: 120.80
A170: 168 | B170: 5552270404528 | C170: 陈兴艳 | D170: 67.00 | E170: 58.70 | F170: 125.70 | G170: 2 | H170: 127.70
A171: 169 | B171: 5552270404612 | C171: 程亚 | D171: 37.00 | E171: 59.10 | F171: 96.10 | G171: 2 | H171: 98.10
A172: 170 | B172: 5552270404526 | C172: 顾林红 | D172: 59.50 | E172: 54.10 | F172: 113.60 | G172: 2 | H172: 115.60
A173: 171 | B173: 5552270404608 | C173: 胡程瑞 | D173: 77.00 | E173: 53.30 | F173: 130.30 | G173: 2 | H173: 132.30
A174: 172 | B174: 5152270404113 | C174: 陈红 | D174: 70.00 | E174: 31.60 | F174: 101.60 | H174: 101.60
A175: 173 | B175: 5152270403801 | C175: 陈华敏 | D175: 0.00 | E175: 0.00 | F175: 0.00 | H175: -- | I175: 缺考
A176: 174 | B176: 5152270403829 | C176: 陈亚雪 | D176: 58.50 | E176: 38.40 | F176: 96.90 | H176: 96.90
A177: 175 | B177: 5152270404107 | C177: 管炳垚 | D177: 73.50 | E177: 48.80 | F177: 122.30 | H177: 122.30
A178: 176 | B178: 5152270403805 | C178: 何青青 | D178: 72.00 | E178: 43.10 | F178: 115.10 | H178: 115.10
A179: 177 | B179: 5152270404104 | C179: 康飞雨 | D179: 0.00 | E179: 0.00 | F179: 0.00 | H179: -- | I179: 缺考
A180: 178 | B180: 5152270404023 | C180: 旷娅 | D180: 68.00 | E180: 33.60 | F180: 101.60 | H180: 101.60
A181: 179 | B181: 5152270403822 | C181: 雷庭 | D181: 74.50 | E181: 45.30 | F181: 119.80 | H181: 119.80
A182: 180 | B182: 5152270404102 | C182: 李地宽 | D182: 81.50 | E182: 38.10 | F182: 119.60 | H182: 119.60
A183: 181 | B183: 5152270404108 | C183: 李小飞 | D183: 61.00 | E183: 49.30 | F183: 110.30 | H183: 110.30
A184: 182 | B184: 5152270403823 | C184: 刘春 | D184: 57.50 | E184: 51.60 | F184: 109.10 | H184: 109.10
A185: 183 | B185: 5152270404006 | C185: 刘国娇 | D185: 63.50 | E185: 45.30 | F185: 108.80 | H185: 108.80
A186: 184 | B186: 5152270404124 | C186: 刘忠伟 | D186: 0.00 | E186: 0.00 | F186: 0.00 | H186: -- | I186: 缺考
A187: 185 | B187: 5152270409104 | C187: 罗桂芬 | D187: 64.00 | E187: 67.70 | F187: 131.70 | H187: 131.70
A188: 186 | B188: 5152270403925 | C188: 梅福 | D188: 53.00 | E188: 35.20 | F188: 88.20 | H188: 88.20
A189: 187 | B189: 5152270403812 | C189: 沈平州 | D189: 0.00 | E189: 0.00 | F189: 0.00 | H189: -- | I189: 缺考
A190: 188 | B190: 5152270403912 | C190: 汤路 | D190: 58.50 | E190: 50.90 | F190: 109.40 | H190: 109.40
A191: 189 | B191: 5152270403926 | C191: 唐欢 | D191: 57.50 | E191: 71.80 | F191: 129.30 | H191: 129.30
A192: 190 | B192: 5152270403824 | C192: 唐涛 | D192: 77.50 | E192: 45.80 | F192: 123.30 | H192: 123.30
A193: 191 | B193: 5152270403904 | C193: 王林 | D193: 53.50 | E193: 40.90 | F193: 94.40 | H193: 94.40
A194: 192 | B194: 5152270403828 | C194: 徐丽琴 | D194: 77.00 | E194: 54.00 | F194: 131.00 | H194: 131.00
A195: 193 | B195: 5152270409105 | C195: 徐敏 | D195: 53.00 | E195: 41.80 | F195: 94.80 | H195: 94.80
A196: 194 | B196: 5152270404118 | C196: 杨学敏 | D196: 63.00 | E196: 42.40 | F196: 105.40 | H196: =F196+G196 -> 105.40
A197: 195 | B197: 5152270404021 | C197: 叶九艳 | D197: 36.50 | E197: 38.90 | F197: 75.40 | H197: 75.40
A198: 196 | B198: 5152270404008 | C198: 殷朝军 | D198: 67.00 | E198: 33.90 | F198: 100.90 | H198: 100.90
A199: 197 | B199: 5152270404110 | C199: 赵娟 | D199: 65.50 | E199: 47.40 | F199: 112.90 | H199: 112.90
A200: 198 | B200: 5152270404129 | C200: 周凯 | D200: 75.50 | E200: 66.50 | F200: 142.00 | H200: 142.00
... 1171 more rows

Sheet Sheet2
